bitfinex-derivatives/quotes_BTCF0:USTF0_20250805
["timestamp","ask_amount","ask_price","bid_price","bid_amount"]
[1754399490553,0.63182085,114110.0,114100.0,0.7955221]
[1754399490757,0.63182085,114110.0,114100.0,0.7954821]
[1754399491955,0.1752821,114100.0,114090.0,0.2629315]
[1754399492157,0.44488844,114100.0,114090.0,0.8832915]
[1754399492458,0.26960634,114100.0,114090.0,0.8832915]
[1754399493151,0.26960634,114100.0,114090.0,0.2629315]
[1754399493356,0.26960634,114100.0,114090.0,0.8832915]
[1754399493865,0.26960634,114100.0,114090.0,0.8842915]
[1754399496754,0.26960634,114100.0,114090.0,0.001]
[1754399496755,0.44488844,114100.0,114090.0,0.001]
[1754399496960,1.17264925,114100.0,114090.0,0.001]
[1754399497558,1.34794525,114100.0,114090.0,0.001]
[1754399497757,1.17264925,114100.0,114090.0,0.001]
[1754399497954,1.17267864,114100.0,114090.0,0.001]
[1754399498672,1.09317719,114100.0,114090.0,0.1762974]
[1754399498968,0.24512,114090.0,114080.0,0.9266606]
[1754399499167,0.26963573,114090.0,114080.0,0.9266606]
[1754399499372,0.36081834,114090.0,114080.0,0.9266606]
[1754399499573,0.44846459,114090.0,114080.0,0.9266606]
[1754399500163,0.62376199,114090.0,114080.0,0.8828332]
[1754399500467,0.44846459,114090.0,114080.0,0.8828332]
[1754399500660,0.62376199,114090.0,114080.0,0.8828332]
[1754399501062,0.62376199,114090.0,114080.0,0.8390058]
[1754399501262,0.44846459,114090.0,114080.0,0.8390058]
[1754399501462,0.44946459,114090.0,114080.0,0.8390058]
[1754399501770,0.06545573,114090.0,114080.0,1.30423573]
[1754399501971,0.04094,114090.0,114080.0,1.30423573]
[1754399502162,0.33844039,114090.0,114080.0,0.7956598]
[1754399502366,0.54105166,114090.0,114080.0,0.7956598]
[1754399502663,0.54105176,114090.0,114080.0,0.7956598]
[1754399503771,0.06544299,114090.0,114080.0,1.26088973]
[1754399503966,0.04094,114090.0,114080.0,1.26088973]
[1754399504569,0.04094,114090.0,114080.0,0.7956598]
[1754399504763,0.04094,114090.0,114080.0,1.26088973]
[1754399506073,0.10639,114090.0,114080.0,1.26088973]
[1754399506369,0.13091109,114090.0,114080.0,1.26088973]
[1754399506565,0.17294109,114090.0,114080.0,1.26088973]
[1754399507168,0.10749109,114090.0,114080.0,1.26088973]
[1754399507374,0.04094,114090.0,114080.0,1.26088973]
[1754399507774,0.001,114090.0,114080.0,1.26088973]
[1754399508069,0.3793874,114090.0,114080.0,0.1752998]
[1754399508275,0.44594869,114090.0,114080.0,0.7947398]
[1754399509273,0.44594869,114090.0,114080.0,0.1752998]
[1754399509473,0.44594869,114090.0,114080.0,0.7945798]
[1754399509875,0.91117862,114090.0,114080.0,0.7945398]
[1754399510466,0.44594869,114090.0,114080.0,0.7945398]
[1754399510668,0.91117862,114090.0,114080.0,0.7945398]
[1754399510873,0.16317129,114090.0,114080.0,0.7945398]
[1754399511375,0.02553129,114090.0,114080.0,1.27744781]
[1754399511763,0.001,114090.0,114080.0,1.57744781]
[1754399511962,0.001,114090.0,114080.0,1.27744781]
[1754399512277,0.04094,114090.0,114080.0,1.27744781]
[1754399512476,0.04094,114090.0,114080.0,0.19297788]
[1754399512778,0.24612,114090.0,114080.0,0.81221788]
[1754399515380,0.4214175,114090.0,114080.0,0.19297788]
[1754399515675,0.4459854,114090.0,114080.0,0.7941398]
[1754399516269,0.4214175,114090.0,114080.0,0.7941398]
[1754399516470,0.44598603,114090.0,114080.0,0.7941398]
[1754399518179,0.27068853,114090.0,114080.0,0.7941398]
[1754399519171,0.44598593,114090.0,114080.0,0.7941398]
[1754399519878,0.27068853,114090.0,114080.0,0.7941398]
[1754399520880,0.44598593,114090.0,114080.0,0.7941398]
[1754399521481,0.27068853,114090.0,114080.0,0.7941398]
[1754399522280,0.44598593,114090.0,114080.0,0.7941398]
[1754399523277,0.27068853,114090.0,114080.0,0.7941398]
[1754399523478,0.44598593,114090.0,114080.0,0.7941398]
[1754399524287,0.27068853,114090.0,114080.0,0.7941398]
[1754399528483,0.44598593,114090.0,114080.0,0.7941398]
[1754399528684,0.27068853,114090.0,114080.0,0.7941398]
[1754399528889,0.44598583,114090.0,114080.0,0.7941398]
[1754399529075,0.27068853,114090.0,114080.0,0.7941398]
[1754399530785,0.44598593,114090.0,114080.0,0.7941398]
[1754399533181,0.02556853,114090.0,114080.0,1.25932992]
[1754399533385,0.26904853,114090.0,114080.0,1.25932992]
[1754399536884,0.06357853,114090.0,114080.0,1.25932992]
[1754399537080,0.02556853,114090.0,114080.0,1.25932992]
[1754399537585,0.06357853,114090.0,114080.0,1.25932992]
[1754399538087,0.06357853,114090.0,114080.0,1.27731877]
[1754399538281,0.02556853,114090.0,114080.0,2.04250889]
[1754399538476,0.03801,114110.0,114100.0,0.175282]
[1754399538679,0.0625891,114110.0,114100.0,1.25907212]
[1754399538881,0.0245791,114110.0,114100.0,1.25907212]
[1754399539386,0.0625891,114110.0,114100.0,1.25907212]
[1754399539878,0.0655891,114110.0,114100.0,1.25907212]
[1754399541282,0.33907416,114110.0,114100.0,0.793882]
[1754399541484,0.44630416,114110.0,114100.0,1.25907212]
[1754399541781,0.27103746,114110.0,114100.0,0.793882]
[1754399542088,0.27103746,114110.0,114100.0,1.25907212]
[1754399542283,0.24648,114110.0,114100.0,1.25907212]
[1754399543783,0.77970672,114110.0,114100.0,0.175282]
[1754399544086,0.98805173,114110.0,114100.0,0.793762]
[1754399544586,0.52286161,114110.0,114100.0,0.793762]
[1754399544787,0.34759501,114110.0,114100.0,0.793762]
[1754399546482,0.52286171,114110.0,114100.0,0.793762]
[1754399547188,0.98805183,114110.0,114100.0,0.175282]
[1754399547487,1.01252088,114110.0,114100.0,0.793722]
[1754399547889,1.14324088,114110.0,114100.0,0.793722]
[1754399548391,0.67805076,114110.0,114100.0,0.793722]
[1754399548893,1.14324088,114110.0,114100.0,0.81172005]
[1754399549699,1.14324088,114110.0,114100.0,0.793722]
[1754399550391,1.14324088,114110.0,114100.0,0.81125099]
[1754399550993,1.14324088,114110.0,114100.0,0.793722]
[1754399553194,0.67805076,114110.0,114100.0,0.793722]
[1754399553494,1.14324088,114110.0,114100.0,0.793722]
[1754399554596,0.53323575,114110.0,114100.0,1.25891212]
[1754399554892,0.29452905,114110.0,114100.0,0.793722]
[1754399555097,0.29452905,114110.0,114100.0,1.25891212]
[1754399555690,0.39853905,114110.0,114100.0,0.793722]
[1754399556295,0.19748905,114110.0,114100.0,1.25891212]
[1754399557190,0.30149905,114110.0,114100.0,1.25891212]
[1754399557390,0.39853905,114110.0,114100.0,1.25891212]
[1754399557692,0.57380565,114110.0,114100.0,0.793722]
[1754399557892,1.03899577,114110.0,114100.0,0.793722]
[1754399558098,0.57380565,114110.0,114100.0,0.793722]
[1754399558497,1.13475589,114110.0,114100.0,0.793722]
[1754399559700,1.13475589,114110.0,114100.0,0.793602]
[1754399560101,0.66956577,114110.0,114100.0,0.793602]
[1754399561500,1.13475589,114110.0,114100.0,0.61832]
[1754399562597,1.13475589,114110.0,114100.0,0.793602]
[1754399564117,0.4156321,114100.0,114090.0,0.219106]
[1754399564315,0.44010115,114100.0,114090.0,0.837386]
[1754399565210,0.52974575,114100.0,114090.0,0.1752974]
[1754399565411,0.4156474,114090.0,114080.0,0.3067818]
[1754399565608,0.4156474,114090.0,114080.0,0.9250218]
[1754399565910,0.44013931,114090.0,114080.0,0.3067818]
[1754399566216,0.44013931,114090.0,114080.0,0.9250218]
[1754399568215,0.26484191,114090.0,114080.0,0.9250218]
[1754399568513,0.26484191,114090.0,114080.0,1.39021192]
[1754399569816,0.11804191,114090.0,114080.0,1.39021192]
[1754399570118,0.09120191,114090.0,114080.0,1.39021192]
[1754399573415,0.09120191,114090.0,114080.0,0.9250218]
[1754399573616,0.09120191,114090.0,114080.0,1.39021192]
[1754399577524,0.06379191,114090.0,114080.0,1.39021192]
[1754399578229,0.02449191,114090.0,114080.0,1.39021192]
[1754399578420,0.06379191,114090.0,114080.0,1.39021192]
[1754399578621,0.0393,114090.0,114080.0,1.39021192]
[1754399579528,0.0393,114090.0,114080.0,0.9250218]
[1754399579729,0.0393,114090.0,114080.0,1.39021192]
[1754399580432,0.09282,114110.0,114100.0,0.175282]
[1754399580728,0.11721493,114110.0,114100.0,1.25855212]
[1754399582627,0.24552493,114110.0,114100.0,1.25855212]
[1754399582822,0.48855153,114110.0,114100.0,1.25855212]
[1754399583223,0.48855677,114110.0,114100.0,1.25855212]
[1754399583429,0.31329017,114110.0,114100.0,1.25855212]
[1754399583629,0.31329017,114110.0,114100.0,0.793362]
[1754399583928,0.48855677,114110.0,114100.0,0.793362]
[1754399584118,0.95574689,114110.0,114100.0,0.793362]
[1754399584323,0.78048029,114110.0,114100.0,0.793362]
[1754399584626,0.31529017,114110.0,114100.0,1.25855212]
[1754399584826,0.29089,114110.0,114100.0,0.793362]
[1754399586225,0.31528691,114110.0,114100.0,0.793362]
[1754399586529,0.29089,114110.0,114100.0,0.793362]
[1754399588925,0.22748,114110.0,114100.0,0.793362]
[1754399589632,0.09482,114110.0,114100.0,1.25855212]
[1754399589930,0.4650765,114110.0,114100.0,0.793362]
[1754399590633,0.95465173,114110.0,114100.0,0.793362]
[1754399591735,0.48946161,114110.0,114100.0,0.793362]
[1754399592234,0.95465173,114110.0,114100.0,0.793362]
[1754399593130,1.05108973,114110.0,114100.0,0.175282]
[1754399593323,1.05108973,114110.0,114100.0,0.793042]
[1754399593928,0.191258,114110.0,114100.0,1.25823212]
[1754399594123,0.09482,114110.0,114100.0,1.25823212]
[1754399595734,0.0413,114110.0,114100.0,1.25823212]
[1754399598739,0.16961,114110.0,114100.0,1.25823212]
[1754399598934,0.23629,114110.0,114100.0,1.25823212]
[1754399599533,0.0413,114110.0,114100.0,1.25823212]
[1754399601838,0.23629,114110.0,114100.0,1.25823212]
[1754399604044,0.23629,114110.0,114100.0,0.793042]
[1754399604234,0.23629,114110.0,114100.0,0.792762]
[1754399605142,0.43622767,114110.0,114100.0,0.792762]
[1754399605640,0.90141779,114110.0,114100.0,0.792762]
[1754399605841,1.00153056,114110.0,114100.0,0.792722]
[1754399606041,1.00153056,114110.0,114100.0,0.175282]
[1754399606343,1.00153056,114110.0,114100.0,0.792722]
[1754399606642,1.00153056,114110.0,114100.0,0.175282]
[1754399606844,1.00153056,114110.0,114100.0,0.792722]
[1754399607146,0.36107404,114110.0,114100.0,0.792722]
[1754399607846,0.53634034,114110.0,114100.0,0.792722]
[1754399608242,0.36107404,114110.0,114100.0,0.792722]
[1754399608650,0.36107404,114110.0,114100.0,0.792682]
[1754399608945,0.36107404,114110.0,114100.0,0.175282]
[1754399609141,0.36107404,114110.0,114100.0,0.792682]
[1754399609549,0.53634034,114110.0,114100.0,0.792682]
[1754399613155,0.36107404,114110.0,114100.0,0.792682]
[1754399613357,0.53634064,114110.0,114100.0,0.792682]
[1754399618155,0.36107404,114110.0,114100.0,0.792682]
[1754399618465,0.53634054,114110.0,114100.0,0.792682]
[1754399620058,0.53644054,114110.0,114100.0,0.792682]
[1754399621667,0.4061119,114100.0,114090.0,0.3067484]
[1754399621868,0.89600917,114100.0,114090.0,0.9238684]
[1754399622063,0.43081905,114100.0,114090.0,0.9238684]
[1754399622766,0.43281905,114100.0,114090.0,0.9238684]
[1754399623068,0.43281905,114100.0,114090.0,0.3067484]
[1754399623262,0.43281905,114100.0,114090.0,0.9238284]
[1754399623664,0.25753715,114100.0,114090.0,0.9238284]
[1754399624266,0.43281905,114100.0,114090.0,0.9238284]
[1754399624769,0.43281905,114100.0,114090.0,0.9238684]
[1754399626370,0.43281905,114100.0,114090.0,0.8800454]
[1754399626768,0.43281905,114100.0,114090.0,0.8362238]
[1754399627164,0.4061272,114090.0,114080.0,0.3067829]
[1754399627364,0.4061272,114090.0,114080.0,0.9237829]
[1754399628166,0.43082932,114090.0,114080.0,0.9237829]
[1754399628475,0.4061272,114090.0,114080.0,0.9237829]
[1754399628666,0.4061272,114090.0,114080.0,0.3067829]
[1754399628867,0.43082801,114090.0,114080.0,0.9237429]
[1754399629171,0.4061272,114090.0,114080.0,0.9237429]
[1754399629868,0.23083,114090.0,114080.0,0.9237429]
[1754399630072,0.4061271,114090.0,114080.0,0.9237429]
[1754399630272,0.43082599,114090.0,114080.0,0.9237429]
[1754399630571,0.4061271,114090.0,114080.0,0.9237429]
[1754399630768,0.4308233,114090.0,114080.0,0.9237429]
[1754399632373,0.2555262,114090.0,114080.0,0.9237429]
[1754399632573,0.4308234,114090.0,114080.0,0.9237429]
[1754399633674,0.2555262,114090.0,114080.0,0.9237429]
[1754399634175,0.25557818,114090.0,114080.0,0.9237429]
[1754399635768,0.25558223,114090.0,114080.0,0.9237429]
[1754399638477,0.25558223,114090.0,114080.0,1.38893302]
[1754399639579,0.43087933,114090.0,114080.0,0.9237429]
[1754399640580,0.25558223,114090.0,114080.0,0.9237429]
[1754399645783,0.25558223,114090.0,114080.0,1.38893302]
[1754399646882,0.43087933,114090.0,114080.0,1.38893302]
[1754399647082,0.43087933,114090.0,114080.0,0.9237429]
[1754399648284,0.25558223,114090.0,114080.0,0.9237429]
[1754399650095,0.25559791,114090.0,114080.0,0.9237429]
[1754399650589,0.25559791,114090.0,114080.0,1.38893302]
[1754399654694,0.09016791,114090.0,114080.0,1.38893302]
[1754399654901,0.02476791,114090.0,114080.0,1.85412314]
[1754399655290,0.05534,114110.0,114100.0,0.1752817]
[1754399655491,0.08012508,114110.0,114100.0,1.25683182]
[1754399655793,0.08012508,114110.0,114100.0,0.7916417]
[1754399655999,0.08012508,114110.0,114100.0,1.25683182]
[1754399656190,0.05534,114110.0,114100.0,1.25683182]
[1754399656792,0.09286,114110.0,114100.0,1.25683182]
[1754399659497,0.09286,114110.0,114100.0,1.27484093]
[1754399660796,0.05734,114110.0,114100.0,1.75012093]
[1754399661798,0.0021,114110.0,114100.0,1.75012093]
[1754399663403,0.0001,114110.0,114100.0,1.75012093]
[1754399663905,0.12904741,114130.0,114120.0,0.175251]
[1754399664104,0.12904741,114130.0,114120.0,1.73911018]
[1754399664304,0.12904741,114130.0,114120.0,1.91435818]
[1754399664707,0.00976741,114130.0,114120.0,1.73911018]
[1754399664906,0.2107557,114130.0,114120.0,1.27392006]
[1754399665311,0.2127557,114130.0,114120.0,1.27392006]
[1754399665508,0.2127557,114130.0,114120.0,0.01739894]
[1754399665812,0.4006257,114130.0,114120.0,0.01739894]
[1754399666104,0.4006257,114130.0,114120.0,0.63335894]
[1754399666313,0.4006257,114130.0,114120.0,0.61596]
[1754399667698,0.3130095,114130.0,114110.0,0.68426982]
[1754399667904,0.3986411,114120.0,114110.0,0.1752632]
[1754399668107,0.3986411,114120.0,114110.0,0.7911432]
[1754399668306,0.22339,114120.0,114110.0,0.7911432]
[1754399668611,0.22339,114120.0,114110.0,1.25633332]
[1754399669310,0.22339,114120.0,114110.0,0.7911432]
[1754399669511,0.22539,114120.0,114110.0,0.7911432]
[1754399671312,0.22539,114120.0,114110.0,1.25633332]
[1754399672711,0.22539,114120.0,114110.0,0.7911432]
[1754399673314,0.22539,114120.0,114110.0,1.25633332]
[1754399676523,0.03752,114120.0,114110.0,1.25633332]
[1754399677020,0.16029,114120.0,114110.0,1.25633332]
[1754399677216,0.22395,114120.0,114110.0,1.25633332]
[1754399679816,0.10283,114120.0,114110.0,1.25633332]
[1754399680023,0.03752,114120.0,114110.0,1.25633332]
[1754399680817,0.03752,114120.0,114110.0,0.7911432]
[1754399681123,0.22395,114120.0,114110.0,1.25633332]
[1754399682420,0.22395,114120.0,114110.0,0.64045332]
[1754399682613,0.24869825,114120.0,114110.0,0.7907832]
[1754399683323,0.24869825,114120.0,114110.0,1.25597332]
[1754399684119,0.24869825,114120.0,114110.0,0.7907832]
[1754399684319,0.24869825,114120.0,114110.0,1.25597332]
[1754399686020,0.15618964,114140.0,114110.0,2.02116424]
[1754399686220,0.21768675,114140.0,114130.0,0.64042582]
[1754399686426,0.08592,114140.0,114130.0,1.25586582]
[1754399687220,0.13246146,114140.0,114130.0,1.25586582]
[1754399688724,0.04654146,114140.0,114130.0,1.25586582]
[1754399688919,0.23297146,114140.0,114130.0,0.1752357]
[1754399689124,0.40819186,114140.0,114130.0,0.7905557]
[1754399689327,0.40819186,114140.0,114130.0,0.1752357]
[1754399689528,0.40819186,114140.0,114130.0,0.7905557]
[1754399690221,0.87338198,114140.0,114130.0,0.1752357]
[1754399690627,0.9685262,114140.0,114130.0,0.1752357]
[1754399690828,0.9685262,114140.0,114130.0,0.7905157]
[1754399691227,0.50333608,114140.0,114130.0,0.7905157]
[1754399691824,0.50333608,114140.0,114130.0,0.1752357]
[1754399692030,0.50333608,114140.0,114130.0,0.7904757]
[1754399693332,0.9685262,114140.0,114130.0,0.7904757]
[1754399693733,0.50333608,114140.0,114130.0,0.7904757]
[1754399693934,0.9685262,114140.0,114130.0,0.61524]
[1754399694332,0.9685262,114140.0,114130.0,0.7904757]
[1754399695132,0.50333608,114140.0,114130.0,0.7904757]
[1754399695429,0.32811568,114140.0,114130.0,1.25566582]
[1754399696235,0.07176146,114140.0,114130.0,1.25566582]
[1754399696936,0.23297146,114140.0,114130.0,0.7904757]
[1754399697634,0.23297146,114140.0,114130.0,1.25566582]
[1754399698138,0.25753526,114140.0,114130.0,0.7904757]
[1754399698635,0.25753526,114140.0,114130.0,0.1752357]
[1754399698832,0.25753526,114140.0,114130.0,0.7903157]
[1754399700034,0.03439526,114140.0,114130.0,1.25550582]
[1754399700339,0.0612738,114140.0,114130.0,1.25550582]
[1754399700635,0.0245638,114140.0,114130.0,1.25550582]
[1754399700839,0.24067894,114150.0,114140.0,0.1752203]
[1754399701141,0.26523953,114150.0,114140.0,0.64041042]
[1754399702034,0.15726262,114150.0,114140.0,0.64041042]
[1754399702534,0.13270203,114150.0,114140.0,0.64041042]
[1754399703238,0.16627203,114150.0,114140.0,0.64041042]
[1754399704037,0.04351203,114150.0,114140.0,0.64041042]
[1754399706041,0.22009203,114150.0,114140.0,0.7901403]
[1754399706842,0.22009203,114150.0,114140.0,0.1752203]
[1754399707143,0.22009203,114150.0,114140.0,0.7900603]
[1754399707941,0.39529723,114150.0,114140.0,0.64041042]
[1754399708135,0.39529723,114150.0,114140.0,0.7900603]
[1754399708440,0.22009203,114150.0,114140.0,1.25525042]
[1754399710143,0.39529723,114150.0,114140.0,1.25525042]
[1754399710737,0.39529723,114150.0,114140.0,0.7900603]
[1754399711146,0.39529723,114150.0,114140.0,0.7899803]
[1754399712441,0.22009203,114150.0,114140.0,0.7899803]
[1754399713044,0.39529723,114150.0,114140.0,0.7899803]
[1754399713345,0.3853705,114140.0,114130.0,0.30664]
[1754399713542,0.85056062,114140.0,114130.0,0.92136]
[1754399714248,0.21015,114140.0,114130.0,0.92136]
[1754399715244,0.21015,114140.0,114130.0,1.38655012]
[1754399715749,0.21015,114140.0,114130.0,1.38755012]
[1754399718551,0.3853706,114140.0,114130.0,0.2638323]
[1754399718746,0.21015,114140.0,114130.0,0.8785123]
[1754399719950,0.21015,114140.0,114130.0,1.34370242]
[1754399722457,0.21015,114140.0,114130.0,0.8785123]
[1754399724255,0.3853705,114140.0,114130.0,0.8785123]
[1754399725248,0.3853705,114140.0,114130.0,0.2638323]
[1754399725456,0.3853705,114140.0,114130.0,0.8784323]
[1754399726354,0.05813727,114140.0,114130.0,0.8784323]
[1754399726560,0.15167727,114140.0,114130.0,1.34362242]
[1754399726760,0.23471727,114140.0,114130.0,1.34362242]
[1754399726961,0.40993777,114140.0,114130.0,0.8784323]
[1754399728461,0.23471727,114140.0,114130.0,0.8784323]
[1754399728856,0.40993777,114140.0,114130.0,0.8784323]
[1754399729669,0.23471727,114140.0,114130.0,0.8784323]
[1754399730055,0.40993767,114140.0,114130.0,0.8784323]
[1754399731056,0.21015,114140.0,114130.0,0.8784323]
[1754399731254,0.3853704,114140.0,114130.0,1.34362242]
[1754399731658,0.21015,114140.0,114130.0,1.34362242]
[1754399733065,0.23472119,114140.0,114130.0,1.34362242]
[1754399733360,0.10458119,114140.0,114130.0,1.34362242]
[1754399733556,0.03357,114140.0,114130.0,1.34362242]
[1754399737667,0.03357,114140.0,114130.0,1.34354242]
[1754399742767,0.05816982,114140.0,114130.0,1.34354242]
[1754399743366,0.04270203,114150.0,114140.0,0.1752205]
[1754399743567,0.0345461,114150.0,114140.0,0.64041062]
[1754399744071,0.0673061,114150.0,114140.0,0.64041062]
[1754399745467,0.0673061,114150.0,114140.0,0.65809176]
[1754399746172,0.0673061,114150.0,114140.0,0.19290164]
[1754399746369,0.0673061,114150.0,114140.0,0.65809176]
[1754399747173,0.04270203,114150.0,114140.0,0.65809176]
[1754399748376,0.12712,114160.0,114150.0,0.1752051]
[1754399748577,0.12712,114160.0,114150.0,1.72002534]
[1754399748880,0.14376,114160.0,114150.0,2.19522534]
[1754399749572,0.14376,114160.0,114150.0,1.73003522]
[1754399750176,0.14376,114160.0,114150.0,1.73103522]
[1754399750681,0.14376,114160.0,114150.0,1.55583522]
[1754399750883,0.14376,114160.0,114150.0,1.73103522]
[1754399751076,0.17652,114160.0,114150.0,1.73103522]
[1754399751781,0.08184,114160.0,114150.0,1.73103522]
[1754399753079,0.08184,114160.0,114150.0,1.43103522]
[1754399755786,0.08184,114160.0,114150.0,1.25575522]
[1754399756784,0.25717,114160.0,114150.0,1.25571522]
[1754399757183,0.08184,114160.0,114150.0,1.25571522]
[1754399757476,0.17417,114160.0,114150.0,1.25571522]
[1754399757688,0.25717,114160.0,114150.0,0.7905251]
[1754399757983,0.4323598,114160.0,114150.0,1.25571522]
[1754399758183,0.25717,114160.0,114150.0,1.25571522]
[1754399760486,0.08184,114160.0,114150.0,1.25567522]
[1754399761786,0.08184,114160.0,114150.0,0.7904851]
[1754399761983,0.08184,114160.0,114150.0,1.25567522]
[1754399768081,0.08329,114160.0,114150.0,1.25567522]
[1754399769093,0.04908,114160.0,114150.0,1.25567522]
[1754399769794,0.08329,114160.0,114150.0,1.25567522]
[1754399770187,0.0611059,114160.0,114150.0,1.25567522]
[1754399770389,0.0209959,114160.0,114150.0,1.72086534]
[1754399770588,0.0209959,114160.0,114150.0,1.25567522]
[1754399771197,0.0552059,114160.0,114150.0,1.25567522]
[1754399772890,1e-07,114160.0,114150.0,1.72086534]
[1754399773294,1e-07,114160.0,114150.0,1.73024322]
[1754399775996,0.03421,114170.0,114160.0,0.1751898]
[1754399776192,0.03421,114170.0,114160.0,0.19290982]
[1754399776390,0.08227,114170.0,114160.0,1.12329006]
[1754399776595,0.05917,114170.0,114160.0,1.12329006]
[1754399777100,0.20955,114170.0,114160.0,1.12329006]
[1754399777600,0.20955,114170.0,114160.0,1.12629006]
[1754399778199,0.20955,114170.0,114160.0,0.66209994]
[1754399779802,0.05917,114170.0,114160.0,1.12729006]
[1754399780299,0.03421,114170.0,114160.0,1.12729006]
[1754399780501,0.11383157,114180.0,114170.0,0.1751744]
[1754399780695,0.22861157,114180.0,114170.0,1.25440452]
[1754399780895,0.28917157,114180.0,114170.0,1.25440452]
[1754399781297,0.31378843,114180.0,114170.0,1.25440452]
[1754399782099,0.28917157,114180.0,114170.0,1.25440452]
[1754399782500,0.28917157,114180.0,114170.0,1.25640452]
[1754399786501,0.12934008,114180.0,114170.0,1.25640452]
[1754399786705,0.21916008,114180.0,114170.0,1.25640452]
[1754399788002,0.12934008,114180.0,114170.0,1.25640452]
[1754399788199,0.0552,114190.0,114180.0,0.1751591]
[1754399788404,0.0552,114190.0,114180.0,0.65819147]
[1754399788607,0.23054,114190.0,114180.0,0.65819147]
[1754399788806,0.08941,114190.0,114180.0,0.65819147]
[1754399789201,0.05694,114190.0,114180.0,0.65819147]
[1754399789406,0.17534,114210.0,114200.0,0.1751284]
[1754399789603,0.26955605,114210.0,114200.0,1.25419852]
[1754399789804,0.24489078,114210.0,114200.0,1.25419852]
[1754399790205,0.25441006,114210.0,114200.0,1.25419852]
[1754399790606,0.18485928,114210.0,114200.0,1.25419852]
[1754399790805,0.25845928,114210.0,114200.0,1.25419852]
[1754399791401,0.29266928,114210.0,114200.0,1.25419852]
[1754399792499,0.3173133,114210.0,114200.0,1.25419852]
[1754399795714,0.31730449,114210.0,114200.0,1.25419852]
[1754399796107,0.29266928,114210.0,114200.0,1.25419852]
[1754399797112,0.23357928,114210.0,114200.0,1.25419852]
[1754399797415,0.29072928,114210.0,114200.0,1.25419852]
[1754399798116,0.31536712,114210.0,114200.0,1.25419852]
[1754399799708,0.29072928,114210.0,114200.0,0.64031852]
[1754399799918,0.29072928,114210.0,114200.0,1.25395852]
[1754399800814,0.31537218,114210.0,114200.0,1.25395852]
[1754399801218,0.29072928,114210.0,114200.0,1.25395852]
[1754399801419,0.31537449,114210.0,114200.0,1.25395852]
[1754399802028,0.29072928,114210.0,114200.0,1.25395852]
[1754399806331,0.29072928,114210.0,114200.0,0.7887684]
[1754399806521,0.29072928,114210.0,114200.0,1.25395852]
[1754399811528,0.29072928,114210.0,114200.0,0.64031852]
[1754399811724,0.46584238,114210.0,114200.0,1.25383852]
[1754399811925,0.1751284,114200.0,114190.0,0.1313507]
[1754399812129,0.3819584,114200.0,114190.0,0.9199597]
[1754399812631,0.20683,114200.0,114190.0,1.38514982]
[1754399813032,0.3819584,114200.0,114190.0,1.38514982]
[1754399813436,0.40661872,114200.0,114190.0,1.38514982]
[1754399813933,0.23149032,114200.0,114190.0,1.38514982]
[1754399814432,0.40661872,114200.0,114190.0,0.9199597]
[1754399814633,0.40661872,114200.0,114190.0,1.38514982]
[1754399815133,0.23149032,114200.0,114190.0,1.38514982]
[1754399815730,0.23149032,114200.0,114190.0,0.77166982]
[1754399815927,0.23149032,114200.0,114190.0,1.38514982]
[1754399818928,0.23149032,114200.0,114190.0,0.9199597]
[1754399819133,0.40661872,114200.0,114190.0,1.38514982]
[1754399820634,0.40661872,114200.0,114190.0,0.3064797]
[1754399820836,0.40661872,114200.0,114190.0,0.2626949]
[1754399821037,0.40661872,114200.0,114190.0,0.8761349]
[1754399822737,0.23149032,114200.0,114190.0,0.8761349]
[1754399823037,0.23149032,114200.0,114190.0,1.34132502]
[1754399824341,0.40661872,114200.0,114190.0,1.34132502]
[1754399825537,0.23149032,114200.0,114190.0,1.34132502]
[1754399825739,0.40661872,114200.0,114190.0,1.34132502]
[1754399825932,0.23149032,114200.0,114190.0,0.72788502]
[1754399826136,0.23149032,114200.0,114190.0,1.34132502]
[1754399826535,0.40661872,114200.0,114190.0,1.34132502]
[1754399827042,0.23149032,114200.0,114190.0,0.8761349]
[1754399827339,0.2314819,114200.0,114190.0,1.34132502]
[1754399827640,0.20683,114200.0,114190.0,1.34132502]
[1754399827843,0.3819584,114200.0,114190.0,1.34132502]
[1754399828140,0.3819584,114200.0,114190.0,1.34128502]
[1754399828543,0.20683,114200.0,114190.0,1.34128502]
[1754399828735,0.3819584,114200.0,114190.0,0.72788502]
[1754399828936,0.20683,114200.0,114190.0,1.34128502]
[1754399830939,0.03216,114200.0,114190.0,1.34128502]
[1754399831444,0.03216,114200.0,114190.0,0.8760949]
[1754399831639,0.20479,114200.0,114190.0,1.34128502]
[1754399832140,0.20479,114200.0,114190.0,0.8760949]
[1754399832345,0.3799184,114200.0,114190.0,1.34128502]
[1754399832548,0.40456258,114200.0,114190.0,0.8760549]
[1754399832735,0.40456258,114200.0,114190.0,0.8760149]
[1754399833136,0.40456258,114200.0,114190.0,0.2189116]
[1754399833344,0.4698615,114190.0,114180.0,0.1751591]
[1754399833540,0.1751591,114180.0,114170.0,0.306538]
[1754399833849,0.40694328,114180.0,114170.0,0.919858]
[1754399834550,0.40694328,114180.0,114170.0,1.38504812]
[1754399835144,0.23178418,114180.0,114170.0,1.38504812]
[1754399835647,0.40694328,114180.0,114170.0,1.38504812]
[1754399835845,0.23178418,114180.0,114170.0,1.38504812]
[1754399836246,0.40694328,114180.0,114170.0,1.38504812]
[1754399836446,0.40694328,114180.0,114170.0,1.38704812]
[1754399836753,0.40694328,114180.0,114170.0,0.921858]
[1754399836944,0.40694328,114180.0,114170.0,1.38704812]
[1754399838855,0.40694328,114180.0,114170.0,0.921858]
[1754399839152,0.23178418,114180.0,114170.0,1.38704812]
[1754399839555,0.23178418,114180.0,114170.0,0.77372812]
[1754399839756,0.23178418,114180.0,114170.0,1.38704812]
[1754399839955,0.40694328,114180.0,114170.0,0.921858]
[1754399840143,0.23178418,114180.0,114170.0,1.38704812]
[1754399841850,0.40694328,114180.0,114170.0,1.38704812]
[1754399842055,0.40694328,114180.0,114170.0,0.308538]
[1754399842258,0.23178418,114180.0,114170.0,1.38700812]
[1754399842556,0.20714,114180.0,114170.0,1.38700812]
[1754399842748,0.20714,114180.0,114170.0,0.77372812]
[1754399842954,0.20714,114180.0,114170.0,1.38700812]
[1754399844052,0.20714,114180.0,114170.0,0.77372812]
[1754399844251,0.3822991,114180.0,114170.0,0.921818]
[1754399844450,0.3822991,114180.0,114170.0,0.77372812]
[1754399844650,0.3822991,114180.0,114170.0,1.34321602]
[1754399844956,0.3822991,114180.0,114170.0,0.2647459]
[1754399845159,0.84748922,114180.0,114170.0,0.834234]
[1754399845467,0.96424082,114180.0,114170.0,0.7904545]
[1754399845960,0.96424082,114180.0,114170.0,0.1771745]
[1754399846151,0.4990507,114180.0,114170.0,0.7904544]
[1754399846352,0.96424082,114180.0,114170.0,0.7904544]
[1754399846660,0.96424082,114180.0,114170.0,0.61528]